bitfinex/quotes_SOLUSD_20250107
["timestamp","ask_amount","ask_price","bid_price","bid_amount"]
[1736264622161,19.435184,206.11,205.98,47.79745212]
[1736264622323,19.435184,206.11,206.01,23.776884]
[1736264622522,19.435184,206.11,206.03,23.776884]
[1736264622814,5.0,206.18,205.95,47.79745212]
[1736264623038,5.0,206.15,205.77,5.0]
[1736264623240,5.0,206.1,205.86,47.79745212]
[1736264623425,5.0,206.08,205.85,31.54618304]
[1736264623645,24.425152,206.17,205.99,47.79745212]
[1736264623646,5.0,206.09,205.99,47.79745212]
[1736264623818,19.425152,206.17,206.06,0.12549]
[1736264624025,19.425152,206.17,205.97,47.79745212]
[1736264624250,19.425152,206.17,205.9,5.0]
[1736264624451,19.425152,206.17,205.86,24.62474199]
[1736264624630,5.0,206.08,205.86,24.62474199]
[1736264624836,5.0,206.11,205.94,47.79745212]
[1736264625132,20.0,206.14,205.96,47.79745212]
[1736264625334,20.0,206.14,205.88,29.05127193]
[1736264625524,20.0,206.14,205.93,47.79745212]
[1736264625727,5.0,206.1,205.88,24.05127193]
[1736264625927,5.0,206.08,205.91,47.79745212]
[1736264626140,19.425152,206.17,206.02,0.12549]
[1736264626337,19.425152,206.17,205.91,35.0]
[1736264626338,19.425152,206.17,206.07,47.79745212]
[1736264626548,24.425152,206.17,205.87,24.07071106]
[1736264626762,5.0,206.13,205.96,30.0]
[1736264626961,19.425152,206.17,205.88,12.1429]
[1736264626962,19.425152,206.17,206.03,30.0]
[1736264627257,19.425152,206.17,206.02,5.0]
[1736264627258,19.425152,206.17,206.16,47.92294212]
[1736264627446,5.0,206.24,206.08,47.79745212]
[1736264627620,5.0,206.3,206.1,47.79745212]
[1736264627824,19.413721,206.34,206.21,23.902374]
[1736264628050,19.413721,206.34,206.15,23.776884]
[1736264628051,12.1296,206.35,206.17,23.776884]
[1736264628256,5.0,206.29,206.17,23.776884]
[1736264628434,24.411315,206.34,206.17,47.79745212]
[1736264628628,24.411315,206.34,206.1,52.79745212]
[1736264628629,5.0,206.38,206.23,47.79745212]
[1736264628826,5.0,206.47,206.3,23.902374]
[1736264629050,19.405315,206.42,206.19,47.79745212]
[1736264629227,5.0,206.42,206.23,47.79745212]
[1736264629551,19.402599,206.44,206.26,23.776884]
[1736264629746,5.0,206.47,206.28,0.12549]
[1736264629951,5.0,206.47,206.27,47.79745212]
[1736264629952,5.0,206.47,206.34,23.902374]
[1736264630135,5.0,206.47,206.34,23.776884]
[1736264630341,5.0,206.47,206.34,23.902374]
[1736264630548,5.0,206.56,206.34,0.12549]
[1736264630853,5.0,206.57,206.4,23.902374]
[1736264631061,5.0,206.57,206.33,5.0]
[1736264631062,13.0835,206.6,206.42,23.902374]
[1736264631365,5.0,206.55,206.29,33.3702]
[1736264631528,5.0,206.54,206.34,47.79745212]
[1736264631736,5.0,206.54,206.35,0.12549]
[1736264631933,24.389274,206.59,206.39,23.902374]
[1736264632150,0.90800465,206.58,206.4,48.06247703]
[1736264632353,13.0835,206.6,206.4,47.79745212]
[1736264632354,5.90785138,206.59,206.4,47.79745212]
[1736264632634,0.90785138,206.59,206.41,23.902374]
[1736264632837,0.90785138,206.59,206.44,47.79745212]
[1736264633045,13.0835,206.6,206.47,23.902374]
[1736264633255,0.90773866,206.59,206.47,23.902374]
[1736264633561,20.0,206.6,206.4,47.79745212]
[1736264633741,20.0,206.57,206.41,0.26455719]
[1736264633943,5.90777262,206.56,206.36,0.26456086]
[1736264634251,20.0,206.53,206.36,0.26522714]
[1736264634455,5.90797401,206.52,206.2,30.0]
[1736264634657,5.0,206.5,206.32,47.79745212]
[1736264634961,12.6181,206.7,206.29,24.25503388]
[1736264634962,5.0,206.56,206.37,23.902374]
[1736264635132,4.0,206.6,206.38,0.26509215]
[1736264635337,4.0,206.56,206.37,0.2648797]
[1736264635558,4.0,206.54,206.34,48.06226646]
[1736264635750,20.0,206.58,206.39,23.902374]
[1736264636072,4.0,206.56,206.4,0.39024456]
[1736264636278,0.90789102,206.57,206.41,0.26479766]
[1736264636457,0.90771357,206.63,206.42,0.12549]
[1736264636767,4.0,206.61,206.42,0.12549]
[1736264636950,4.0,206.59,206.44,0.12549]
[1736264637151,4.0,206.67,206.44,0.39018997]
[1736264637347,4.90767244,206.66,206.44,48.18764209]
[1736264637545,0.90754608,206.69,206.51,0.12549]
[1736264637772,4.0,206.67,206.53,0.12549]
[1736264638079,0.90742374,206.66,206.49,0.2638631]
[1736264638276,4.90745266,206.65,206.43,0.26392095]
[1736264638475,0.90745266,206.65,206.44,0.26411488]
[1736264638634,0.90778295,206.67,206.45,0.26458152]
[1736264638835,0.90778295,206.67,206.46,0.12549]
[1736264639040,4.0,206.64,206.43,0.2642236]
[1736264639346,4.0,206.64,206.47,0.12549]
[1736264639669,4.0,206.64,206.45,30.0]
[1736264639670,4.0,206.72,206.52,47.79745212]
[1736264639882,12.6181,206.7,206.54,47.92294212]
[1736264640059,4.0,206.77,206.56,47.79745212]
[1736264640240,34.0313893,206.83,206.54,0.12549]
[1736264640241,4.90713135,206.76,206.54,0.12549]
[1736264640559,34.0313893,206.83,206.55,48.06092544]
[1736264640560,4.0,206.79,206.55,48.06092544]
[1736264640741,0.90718765,206.78,206.55,48.06092544]
[1736264640937,4.0,206.76,206.55,0.26347332]
[1736264641139,0.90722759,206.75,206.55,48.06092544]
[1736264641390,0.90704726,206.78,206.56,0.12549]
[1736264641548,0.90690042,206.79,206.61,0.12549]
[1736264641750,0.90696253,206.78,206.61,0.12549]
[1736264641968,0.90691317,206.79,206.61,0.38843068]
[1736264642265,12.5818,206.83,206.66,47.79745212]
[1736264642476,0.90656084,206.82,206.68,0.12549]
[1736264642766,0.90656084,206.82,206.66,47.79745212]
[1736264642767,13.52487168,206.92,206.72,47.79745212]
[1736264642976,0.90677168,206.92,206.75,0.12549]
[1736264643142,4.0,206.88,206.75,0.38710094]
[1736264643346,4.0,206.82,206.68,47.79745212]
[1736264643551,4.0,206.85,206.69,0.26209663]
[1736264643867,0.90654051,206.92,206.72,47.79745212]
[1736264644077,4.0,206.87,206.69,0.26175139]
[1736264644279,0.90652815,206.86,206.69,0.26175139]
[1736264644453,4.0,206.87,206.72,47.79745212]
[1736264644775,4.0,206.9,206.72,47.79745212]
[1736264644975,4.0,206.87,206.73,0.26188589]
[1736264645138,4.90655786,206.86,206.69,0.26213133]
[1736264645344,4.0,206.84,206.66,47.79745212]
[1736264645564,13.212,206.93,206.7,47.79745212]
[1736264645565,4.0,206.89,206.7,47.79745212]
[1736264645872,4.0,206.82,206.67,30.0]
[1736264646081,4.0,206.82,206.65,48.06026291]
[1736264646243,4.0,206.84,206.68,0.12549]
[1736264646573,4.0,206.81,206.67,0.26281079]
[1736264646747,4.0,206.81,206.64,24.28353521]
[1736264646748,4.0,206.87,206.66,47.79745212]
[1736264647072,4.0,206.76,206.57,54.80427962]
[1736264647273,4.0,206.73,206.58,48.06032779]
[1736264647573,4.0,206.74,206.58,0.26287567]
[1736264647801,4.0,206.72,206.57,25.06750319]
[1736264647981,0.23548196,206.72,206.52,47.79745212]
[1736264648186,0.23548196,206.74,206.53,54.94722616]
[1736264648367,0.23548196,206.7,206.53,24.9467792]
[1736264648682,5.0,206.83,206.53,24.9467792]
[1736264648683,0.23548196,206.71,206.53,0.26352879]
[1736264649005,0.90727289,206.78,206.61,0.12549]
[1736264649169,0.23548196,206.74,206.52,24.15503152]
[1736264649369,0.23548196,206.7,206.52,24.15503152]
[1736264649564,0.23548196,206.68,206.52,24.15503152]
[1736264649976,0.23548196,206.6,206.45,29.06381228]
[1736264650465,0.23548196,206.58,206.42,24.20047408]
[1736264650667,0.90769919,206.63,206.43,24.58062142]
[1736264650867,0.23548196,206.64,206.45,24.06381228]
[1736264651102,0.23548196,206.67,206.49,0.12549]
[1736264651288,1.1430529,206.67,206.47,0.2641575]
[1736264651493,0.23548196,206.65,206.45,24.06381228]
[1736264651708,0.23548196,206.53,206.37,24.76678098]
[1736264651914,0.23548196,206.53,206.39,24.75043173]
[1736264652198,0.23548196,206.49,206.29,24.25503388]
[1736264652367,0.23548196,206.45,206.3,24.09892934]
[1736264652569,0.23548196,206.47,206.28,0.12549]
[1736264652808,0.23548196,206.43,206.32,0.12549]
[1736264653103,0.23548196,206.45,206.29,24.25503388]
[1736264653306,20.0,206.48,206.33,47.79745212]
[1736264653511,0.23548196,206.47,206.32,0.26526224]
[1736264653670,12.9055,206.51,206.29,24.25503388]
[1736264653671,0.23548196,206.43,206.29,24.25503388]
[1736264653870,0.23548196,206.46,206.31,24.50235018]
[1736264654095,0.23548196,206.46,206.32,48.06294089]
[1736264654297,20.23548196,206.48,206.36,0.12549]
[1736264654501,0.23548196,206.46,206.32,0.26548877]
[1736264654703,0.23548196,206.44,206.31,24.50235018]
[1736264655010,20.0,206.48,206.32,25.09295365]
[1736264655211,20.0,206.48,206.33,0.12549]
[1736264655212,0.23548196,206.44,206.33,0.12549]
[1736264655509,0.23548196,206.44,206.33,0.25098]
[1736264655870,20.0,206.48,206.33,0.51655465]
[1736264656118,0.23548196,206.47,206.37,0.12549]
[1736264656405,20.0,206.48,206.37,0.12549]
[1736264656602,20.0,206.48,206.37,47.79745212]
[1736264656805,0.23548196,206.55,206.42,0.25098]
[1736264657009,0.23548196,206.55,206.44,0.25098]
[1736264657197,1.14323148,206.6,206.46,0.25098]
[1736264657390,0.23548196,206.66,206.52,0.25098]
[1736264657577,0.23548196,206.65,206.56,0.25098]
[1736264657777,13.1824,206.71,206.6,0.25098]
[1736264658109,12.24518196,206.82,206.67,47.79745212]
[1736264658314,12.24518196,206.82,206.6,48.06081275]
[1736264658315,0.23548196,206.82,206.72,0.25098]
[1736264658472,0.23548196,206.82,206.68,0.26274882]
[1736264658473,0.90662272,206.86,206.74,0.25098]
[1736264658673,0.23548196,206.9,206.75,47.79745212]
[1736264658988,0.23548196,206.95,206.8,0.25098]
[1736264659312,0.23548196,206.95,206.8,0.12549]
[1736264659474,0.90639039,207.0,206.69,315.365]
[1736264659475,0.23548196,206.88,206.72,47.79745212]
[1736264659676,0.23548196,206.84,206.72,0.26188567]
[1736264659873,0.23548196,206.86,206.65,48.05938997]
[1736264660075,0.23548196,206.75,206.63,0.2622794]
[1736264660275,0.23548196,206.77,206.58,0.26266637]
[1736264660501,0.23548196,206.69,206.53,0.2631568]
[1736264660672,0.23548196,206.74,206.55,47.79745212]
[1736264660879,0.23548196,206.7,206.54,47.79745212]
[1736264661088,0.23548196,206.63,206.49,0.26357531]
[1736264661293,0.23548196,206.72,206.52,47.79745212]
[1736264661618,0.23548196,206.7,206.53,47.92294212]
[1736264661780,1.14289361,206.7,206.53,0.12549]
[1736264662117,0.23548196,206.72,206.58,0.25098]
[1736264662277,0.23548196,206.68,206.58,0.25098]
[1736264662479,0.23548196,206.67,206.58,0.25098]
[1736264662709,0.23548196,206.65,206.49,24.66408405]
[1736264663016,20.0,206.76,206.5,24.10482667]
[1736264663017,0.23548196,206.61,206.5,24.10482667]
[1736264663216,20.0,206.67,206.52,0.25098]
[1736264663392,0.23548196,206.62,206.47,24.07983755]
[1736264663718,0.23548196,206.62,206.47,48.06156565]
[1736264663883,0.23548196,206.57,206.39,30.0]
[1736264664088,0.23548196,206.57,206.44,47.79745212]
[1736264664407,0.23548196,206.56,206.42,0.26437696]
[1736264664621,0.23548196,206.56,206.42,0.26471493]
[1736264664921,0.23548196,206.51,206.4,0.26470408]
[1736264665085,0.23548196,206.51,206.35,24.74638114]
[1736264665283,0.23548196,206.48,206.33,24.90378213]
[1736264665485,0.23548196,206.4,206.27,24.6257013]
[1736264665716,0.23548196,206.4,206.25,24.44237336]
[1736264666025,0.23548196,206.47,206.3,47.79745212]
[1736264666184,0.23548196,206.47,206.33,0.25098]
[1736264666516,0.23548196,206.47,206.34,0.2651648]
[1736264666681,0.23548196,206.47,206.32,0.2651648]
[1736264666882,0.23548196,206.5,206.35,0.25098]
[1736264667314,0.23548196,206.48,206.35,0.25098]
[1736264667487,0.23548196,206.5,206.39,0.25098]
[1736264668007,0.23548196,206.55,206.43,0.25098]
[1736264668185,0.23548196,206.55,206.45,0.25098]
[1736264668387,12.9533,206.58,206.47,0.25098]
[1736264668617,0.23548196,206.62,206.49,0.25098]
[1736264668884,19.380219,206.62,206.53,0.25098]
[1736264669111,19.380219,206.62,206.52,0.25098]
[1736264669421,12.8124,206.68,206.56,0.25098]
[1736264669710,0.23548196,206.65,206.56,0.25098]
[1736264669918,12.8124,206.68,206.55,0.26361178]
[1736264670098,0.23548196,206.69,206.58,0.25098]
[1736264670911,0.23548196,206.74,206.62,0.25098]
[1736264671221,12.8124,206.78,206.62,0.25098]
[1736264671222,0.23548196,206.73,206.64,0.25098]
[1736264671514,0.23548196,206.67,206.64,0.12549]
[1736264671693,0.23548196,206.67,206.54,0.26303372]
[1736264671882,0.23548196,206.67,206.55,0.12549]
[1736264672084,0.23548196,206.6,206.55,0.12549]
[1736264672299,0.23548196,206.65,206.47,71.87728967]
[1736264672514,0.23548196,206.65,206.5,47.92294212]
[1736264672817,0.23548196,206.65,206.53,47.79745212]
[1736264673020,0.23548196,206.63,206.54,0.25098]
[1736264673525,0.23548196,206.63,206.52,48.06114212]
[1736264673691,0.23548196,206.62,206.52,48.06114212]
[1736264673894,0.23548196,206.62,206.5,47.79745212]
[1736264674092,0.23548196,206.62,206.51,48.06121109]
[1736264674292,0.23548196,206.62,206.52,0.25098]
[1736264674588,0.23548196,206.6,206.52,0.12549]
[1736264674792,0.23548196,206.62,206.52,0.26410589]
[1736264675033,0.23548196,206.62,206.5,0.26376349]
[1736264675321,0.23548196,206.6,206.51,0.12549]
[1736264675490,0.23548196,206.62,206.51,0.25098]
[1736264675826,0.23548196,206.6,206.55,0.25098]
[1736264676419,0.23548196,206.67,206.55,0.26371781]
[1736264676614,0.23548196,206.7,206.59,47.79745212]
[1736264676823,0.23548196,206.61,206.53,47.79745212]
[1736264677107,0.23548196,206.61,206.54,0.26363982]
[1736264677318,20.0,206.72,206.51,0.25098]
[1736264677319,0.23548196,206.63,206.51,0.25098]
[1736264677621,0.90729693,206.71,206.57,47.79745212]
[1736264677622,0.23548196,206.62,206.57,47.79745212]
[1736264677827,0.23548196,206.73,206.61,47.79745212]
[1736264678029,0.23548196,206.7,206.61,47.79745212]
[1736264678330,0.23548196,206.79,206.66,48.04843212]
[1736264678626,0.23548196,206.79,206.71,47.79745212]
[1736264678829,0.23548196,206.81,206.74,0.25098]
[1736264679130,0.23548196,206.81,206.74,0.51285203]
[1736264679304,0.23548196,206.86,206.76,0.25098]
[1736264679497,0.23548196,206.86,206.74,0.51285203]
[1736264679498,0.23548196,206.87,206.82,0.25098]
[1736264679827,19.353738,206.91,206.83,47.79745212]
[1736264680124,0.23548196,206.91,206.84,0.12549]
[1736264680296,0.23548196,206.98,206.84,0.12549]
[1736264680493,0.23548196,206.9,206.82,48.05835781]
[1736264680694,0.23548196,206.9,206.82,0.26090569]
[1736264681010,0.23548196,206.88,206.77,77.79745212]
[1736264681215,0.23548196,206.88,206.78,48.05871264]
[1736264681449,0.23548196,206.85,206.79,0.25098]
[1736264681734,0.23548196,206.85,206.81,0.12549]
[1736264681896,0.23548196,206.87,206.81,0.12549]
[1736264682230,0.23548196,206.82,206.78,0.26142874]
[1736264682402,0.23548196,206.82,206.75,0.26142874]
[1736264682729,0.23548196,206.84,206.73,0.26178661]
[1736264682916,0.23548196,206.87,206.77,0.12549]
[1736264683235,0.23548196,206.87,206.81,0.25098]
[1736264683388,0.23548196,206.87,206.82,0.26113333]
[1736264683731,0.23548196,206.87,206.83,0.12549]
[1736264684590,0.23548196,206.86,206.83,0.12549]
[1736264684797,0.23548196,206.86,206.81,0.12549]
[1736264685527,0.23548196,206.86,206.78,39.0418742]
[1736264685734,0.23548196,206.86,206.77,47.45519352]
[1736264685947,0.23548196,206.86,206.78,0.12549]
[1736264686252,0.23548196,206.91,206.77,47.45519352]
[1736264686433,0.23548196,206.89,206.79,30.0]
[1736264687216,0.23548196,206.89,206.79,77.45519352]
[1736264687431,0.23548196,206.89,206.83,0.12549]
[1736264687649,0.23548196,206.89,206.83,0.25098]
[1736264687817,0.23548196,206.87,206.83,0.12549]
[1736264688018,20.0,206.96,206.83,0.12549]
[1736264688019,0.23548196,206.85,206.83,0.12549]
[1736264688247,0.23548196,206.8,206.67,77.45519352]
[1736264688433,0.23548196,206.78,206.7,30.0]
[1736264688634,0.23548196,206.77,206.67,30.0]
[1736264688825,0.23548196,206.73,206.64,77.45519352]
[1736264689026,0.23548196,206.73,206.64,30.0]
[1736264689549,0.90667374,206.83,206.56,7.38435778]
[1736264689550,0.23548196,206.71,206.61,30.0]
[1736264689854,0.23548196,206.75,206.56,7.38435778]
[1736264690023,0.23548196,206.71,206.64,30.0]
[1736264690217,0.23548196,206.7,206.61,30.0]
[1736264690444,0.23548196,206.7,206.55,30.0]
[1736264690649,12.2432,206.81,206.55,30.0]
[1736264690650,0.23548196,206.63,206.55,30.0]
[1736264690959,0.23548196,206.68,206.56,30.0]
[1736264691115,0.23548196,206.68,206.57,30.0]
[1736264691320,0.23548196,206.7,206.59,0.12549]
[1736264691523,0.23548196,206.68,206.59,0.12549]
[1736264691753,0.23548196,206.65,206.59,0.12549]
[1736264691921,0.23548196,206.65,206.51,47.45519352]
[1736264692255,0.23548196,206.58,206.5,0.67503142]
[1736264692434,0.23548196,206.57,206.5,0.67503142]
[1736264692829,0.23548196,206.57,206.51,0.12549]
[1736264693030,0.23548196,206.65,206.51,47.58068352]
[1736264693261,0.23548196,206.6,206.53,0.12549]
[1736264693560,0.23548196,206.67,206.53,0.12549]
[1736264693751,0.23548196,206.64,206.5,30.67503142]
[1736264694070,0.23548196,206.64,206.51,0.12549]
[1736264694358,0.12549,206.66,206.53,0.12549]
[1736264694359,0.23548196,206.66,206.53,0.12549]
[1736264694736,0.23548196,206.58,206.5,78.13022494]
[1736264694933,0.23548196,206.53,206.5,0.67503142]
[1736264695247,0.23548196,206.51,206.5,0.67503142]
[1736264697044,0.23548196,206.53,206.51,0.12549]
[1736264697248,0.12549,206.56,206.5,0.80052142]
[1736264697249,0.23548196,206.51,206.5,0.80052142]
[1736264697759,0.23548196,206.52,206.5,0.67503142]
[1736264698157,0.12549,206.51,206.5,0.67503142]
[1736264698363,0.23548196,206.52,206.5,0.67503142]
[1736264698566,0.12549,206.51,206.5,0.67503142]
[1736264699231,0.23548196,206.52,206.5,0.67503142]
[1736264699232,0.23548196,206.52,206.51,0.12549]
[1736264699441,0.23548196,206.57,206.51,0.12549]
[1736264699737,0.23548196,206.53,206.45,46.25571494]
[1736264700128,0.23548196,206.58,206.49,47.59616442]
[1736264700342,0.23548196,206.52,206.43,30.0]
[1736264700541,0.23548196,206.47,206.38,47.59616442]
[1736264700761,0.23548196,206.47,206.37,30.0]
[1736264700962,0.23548196,206.49,206.37,77.59616442]
[1736264701161,0.12549,206.48,206.37,30.0]
[1736264701371,0.23548196,206.52,206.37,30.0]
[1736264701572,0.23548196,206.46,206.37,77.59616442]
[1736264701871,0.23548196,206.46,206.3,52.59616442]
[1736264701872,0.23548196,206.56,206.43,0.12549]
[1736264702074,0.23548196,206.56,206.42,47.59616442]
[1736264702075,0.23548196,206.49,206.45,0.12549]
[1736264702256,0.23548196,206.47,206.36,30.0]
[1736264702458,0.12549,206.48,206.36,30.0]
[1736264702996,0.36097196,206.37,206.25,7.38435778]
[1736264703147,0.23548196,206.33,206.25,7.38435778]
[1736264703348,0.23548196,206.3,206.29,1.938596]
[1736264703557,0.23548196,206.3,206.25,7.38435778]
[1736264703558,0.23548196,206.26,206.25,7.38435778]
[1736264703772,0.23548196,206.14,206.12,37.48140981]
[1736264704040,0.23548196,206.14,206.12,7.48140981]
[1736264704282,20.23548196,206.14,206.12,7.48140981]
[1736264704467,0.23548196,206.11,206.1,10.34749915]
[1736264704655,5.0,206.19,205.98,14.95822605]
[1736264704656,0.23548196,206.01,205.98,14.95822605]
[1736264704852,0.11008196,205.99,205.98,14.95822605]
[1736264705578,0.11008196,205.87,205.84,30.0]
[1736264705759,0.11008196,205.87,205.81,30.0]
[1736264705963,0.11008196,205.87,205.77,30.0]
[1736264706468,0.11008196,205.87,205.79,0.34659091]
[1736264707185,0.11008196,205.9,205.79,0.34659091]
[1736264707491,0.11008196,205.88,205.85,6.59970262]
[1736264707879,20.11008196,205.95,205.85,54.19586704]
[1736264708083,0.11008196,205.92,205.85,54.19586704]
[1736264708292,0.11008196,205.96,205.85,54.19586704]
[1736264708471,0.11008196,205.94,205.87,47.59616442]
[1736264708677,0.12549,205.99,205.85,6.59970262]
[1736264708678,0.12549,205.99,205.93,47.59616442]
[1736264708897,0.11008196,206.05,205.96,0.12549]
[1736264709086,17.2928,206.19,205.96,0.12549]
[1736264709087,0.11008196,206.01,205.96,0.12549]
[1736264709287,0.11008196,206.03,205.98,0.12549]
[1736264709490,0.11008196,206.09,206.02,0.12549]
[1736264709685,0.90979202,206.18,206.02,0.12549]
[1736264709894,0.90979202,206.18,205.9,52.59616442]
[1736264709895,5.0,206.26,206.08,0.12549]
[1736264710093,5.0,206.31,206.06,0.12549]
[1736264710094,0.90937708,206.25,206.1,0.12549]
[1736264710294,0.90927592,206.27,206.11,47.59616442]
[1736264710474,5.90919294,206.29,206.07,47.72165442]
[1736264710672,5.0,206.21,206.03,30.0]
[1736264710879,0.12549,206.13,205.95,47.59616442]
[1736264711104,0.12549,206.13,205.93,47.59616442]
[1736264711407,0.12549,206.13,205.97,0.12549]
[1736264711572,20.0,206.18,206.01,0.12549]
[1736264711771,0.12549,206.16,206.01,0.12549]
[1736264712006,5.0,206.11,205.89,30.0]
[1736264712193,20.0,206.07,205.85,6.59970262]
[1736264712388,0.91012048,206.06,205.88,47.59616442]
[1736264712587,0.91012048,206.06,205.86,30.0]
[1736264712806,0.91012048,206.06,205.87,0.12549]
[1736264713106,0.12549,205.96,205.85,6.59970262]
[1736264713477,0.12549,205.96,205.85,6.47430262]
[1736264713478,1.03576776,205.96,205.85,6.47430262]
[1736264713680,0.12549,205.94,205.85,6.47430262]
[1736264714097,5.0,206.04,205.85,6.47430262]
[1736264714098,20.0,205.99,205.85,6.47430262]
[1736264714279,0.12549,205.92,205.85,6.47430262]
[1736264714789,19.438059,205.96,205.85,6.47430262]
[1736264715017,0.12549,205.92,205.85,6.34890262]
[1736264715323,26.03612211,205.92,205.85,6.34890262]
[1736264715520,23.902374,205.88,205.79,0.34659091]
[1736264715724,0.12549,205.82,205.79,0.34659091]
[1736264716020,5.12549,205.75,205.74,21.72742426]
[1736264716385,5.12549,205.75,205.74,13.06072426]
[1736264716720,28.902374,205.75,205.74,13.06072426]
[1736264716921,28.902374,205.75,205.57,24.23966677]
[1736264716922,0.12549,205.67,205.57,24.23966677]
[1736264717118,5.0,205.7,205.57,24.23966677]
[1736264717319,0.13929342,205.65,205.57,24.23966677]
[1736264717612,0.27858684,205.67,205.57,24.23966677]
[1736264718288,0.9120931,205.75,205.57,24.23966677]
[1736264718485,0.9120931,205.75,205.57,24.9960338]
[1736264718723,23.776884,205.74,205.57,24.9960338]
[1736264718921,23.776884,205.72,205.57,24.9960338]
[1736264719218,0.12549,205.7,205.57,24.9960338]
[1736264719400,0.91222842,205.69,205.57,24.9960338]
[1736264719600,0.91218913,205.77,205.57,29.9960338]
[1736264719801,0.91218913,205.77,205.57,24.41734991]
[1736264720127,0.98504363,205.76,205.61,5.0]
[1736264720287,0.91191268,205.75,205.62,24.02317866]
[1736264720495,0.91191268,205.75,205.71,4.8746]
[1736264720688,0.12549,205.74,205.73,4.8746]
[1736264720994,0.91168052,205.88,205.73,4.8746]
[1736264721200,0.91148867,205.87,205.79,4.8746]
[1736264721418,0.91129755,205.95,205.79,4.8746]
[1736264721586,0.91129755,205.95,205.8,4.8746]
[1736264722086,0.91129755,205.95,205.88,4.8746]
[1736264722287,0.91129755,205.95,205.8,23.902374]
[1736264722511,0.91129755,205.95,205.89,4.7492]
[1736264722943,0.91129755,205.95,205.94,4.7492]
[1736264723144,0.2508,206.15,205.95,4.7492]
[1736264723308,0.91043601,206.14,205.97,4.7492]
[1736264723517,0.91015616,206.13,206.06,4.7492]
[1736264723724,0.91018346,206.21,206.1,52.34536442]
[1736264723929,7.4981,206.12,206.1,4.7492]
[1736264724216,7.4981,206.12,206.11,23.902374]
[1736264724412,0.91015842,206.3,206.21,4.6238]
[1736264724745,19.416751,206.3,206.25,4.6238]
[1736264724918,19.416751,206.3,206.25,47.59616442]
[1736264724919,0.9092789,206.29,206.25,47.59616442]
[1736264725119,19.3260299,206.3,206.28,4.6238]
[1736264725332,243.52931367,206.58,206.36,4.6238]
[1736264725640,0.90289616,206.55,206.38,4.6238]
[1736264725852,0.90289616,206.55,206.2,47.59616442]
[1736264725853,1.76244979,206.55,206.41,4.6238]
[1736264726011,21.16418079,206.55,206.46,4.6238]
[1736264726214,20.0,206.52,206.44,4.4984]
[1736264726563,0.90289616,206.51,206.44,0.12549]
[1736264726714,0.90289616,206.51,206.47,4.4984]
[1736264726915,0.90289616,206.54,206.44,0.12549]
[1736264727140,0.5016,206.58,206.44,0.12549]
[1736264727437,0.90289616,206.57,206.45,4.4984]
[1736264727743,21.46937359,206.63,206.56,4.4984]
[1736264727744,0.12549,206.61,206.56,4.4984]
[1736264727920,0.90289616,206.6,206.58,4.4984]
[1736264728125,251.02741367,206.84,206.4,47.59616442]
[1736264728126,0.90289616,206.62,206.61,4.4984]
[1736264728331,30.0,206.71,206.61,4.4984]
[1736264728639,0.90289616,206.7,206.67,4.373]
[1736264728810,0.90289616,206.7,206.5,47.59616442]
[1736264728811,1.52989616,206.91,206.69,4.373]
[1736264729012,0.90289616,206.91,206.71,4.373]
[1736264729219,0.90289616,206.91,206.78,4.373]
[1736264729421,0.90289616,206.97,206.78,4.373]
[1736264729827,0.85955363,206.96,206.76,4.373]
[1736264730031,0.627,206.87,206.7,5.0]
[1736264730242,0.627,206.88,206.76,23.902374]
[1736264730451,0.627,206.83,206.76,23.776974]
[1736264730626,0.12549,206.78,206.66,5.0]
[1736264730957,1.02838616,206.78,206.67,4.373]
[1736264731256,0.90289616,206.78,206.75,4.373]
[1736264731435,19.368272,206.81,206.77,4.373]
[1736264731642,0.90289616,206.8,206.76,4.373]
[1736264731825,0.90289616,206.8,206.6,47.59616442]
[1736264731826,0.90289616,206.98,206.86,4.373]
[1736264732164,0.90289616,206.97,206.88,4.373]
[1736264732461,0.90289616,207.07,206.79,4.373]
[1736264732630,0.627,207.01,206.84,0.12549]
[1736264732956,0.627,207.01,206.71,0.72543479]
[1736264732957,0.90289616,207.0,206.79,4.373]
[1736264733156,0.12549,206.91,206.74,9.373]
[1736264733348,0.627,206.89,206.72,9.373]